[Event "*** SCC Grand Prix: Titled Tuesday Blitz"]
[Site "Chess.com"]
[Date "2020.09.08"]
[Round "8"]
[White "TheMagnet"]
[Black "crescentmoon2411"]
[Result "0-1"]
[WhiteElo "2581"]
[BlackElo "2762"]
[TimeControl "180+1"]
[EndTime "11:36:23 PDT"]
[Termination "crescentmoon2411 won by resignation"]

1. d4 {[%clk 0:03:00.9]} 1... Nf6 {[%clk 0:03:00.5]} 2. c4 {[%clk 0:03:01]} 2...
c5 {[%clk 0:03:01.1]} 3. d5 {[%clk 0:03:01.1]} 3... e6 {[%clk 0:03:01.7]} 4. Nc3
{[%clk 0:03:01.3]} 4... exd5 {[%clk 0:03:01.7]} 5. cxd5 {[%clk 0:03:02.2]} 5...
d6 {[%clk 0:03:02.1]} 6. e4 {[%clk 0:03:02.9]} 6... g6 {[%clk 0:03:02.5]} 7. f4
{[%clk 0:03:03.5]} 7... Bg7 {[%clk 0:03:03]} 8. Nf3 {[%clk 0:03:04.2]} 8... O-O
{[%clk 0:03:02.6]} 9. Be2 {[%clk 0:03:04.9]} 9... Bg4 {[%clk 0:02:57.7]} 10. O-O
{[%clk 0:03:04.9]} 10... Nbd7 {[%clk 0:02:49.3]} 11. Re1 {[%clk 0:03:04.5]}
11... Re8 {[%clk 0:02:42]} 12. h3 {[%clk 0:03:04.4]} 12... Bxf3 {[%clk
0:02:42.1]} 13. Bxf3 {[%clk 0:03:05.3]} 13... a6 {[%clk 0:02:37]} 14. Be3 {[%clk
0:03:03.4]} 14... b5 {[%clk 0:02:32.9]} 15. Bf2 {[%clk 0:03:03.1]} 15... Rb8
{[%clk 0:02:21.1]} 16. a3 {[%clk 0:03:01.1]} 16... Qc7 {[%clk 0:01:54.9]} 17. g4
{[%clk 0:02:52.9]} 17... h6 {[%clk 0:01:51.7]} 18. h4 {[%clk 0:02:52.5]} 18...
g5 {[%clk 0:01:48]} 19. hxg5 {[%clk 0:02:41.5]} 19... hxg5 {[%clk 0:01:48.9]}
20. e5 {[%clk 0:02:34.7]} 20... dxe5 {[%clk 0:01:48.8]} 21. d6 {[%clk
0:02:24.6]} 21... Qd8 {[%clk 0:01:47.6]} 22. fxg5 {[%clk 0:01:58.2]} 22... Nh7
{[%clk 0:01:47.6]} 23. g6 {[%clk 0:01:58.1]} 23... fxg6 {[%clk 0:01:47.7]} 24.
Bd5+ {[%clk 0:01:43.3]} 24... Kh8 {[%clk 0:01:47.7]} 25. Bf7 {[%clk 0:01:42.4]}
25... Rf8 {[%clk 0:01:44.8]} 26. Bxg6 {[%clk 0:01:40.6]} 26... Qg5 {[%clk
0:01:34.6]} 27. Bxh7 {[%clk 0:01:30.9]} 27... Kxh7 {[%clk 0:01:35.5]} 28. Ne4
{[%clk 0:01:18.3]} 28... Qg6 {[%clk 0:01:33.9]} 29. Kg2 {[%clk 0:01:08.2]} 29...
Rf4 {[%clk 0:01:32.2]} 30. Rh1+ {[%clk 0:01:06.2]} 30... Bh6 {[%clk 0:01:17.5]}
31. Ng3 {[%clk 0:00:37.6]} 31... Rxg4 {[%clk 0:00:58.1]} 32. Qf3 {[%clk
0:00:27.5]} 32... Rf8 {[%clk 0:00:42.9]} 33. Rxh6+ {[%clk 0:00:17.9]} 33... Kxh6
{[%clk 0:00:42.3]} 34. Rh1+ {[%clk 0:00:18.2]} 34... Kg7 {[%clk 0:00:42.4]} 35.
Qb7 {[%clk 0:00:18.4]} 35... Rf7 {[%clk 0:00:40]} 36. Be1 {[%clk 0:00:17.2]}
36... Qc2+ {[%clk 0:00:24.4]} 37. Kg1 {[%clk 0:00:17.1]} 37... Qe2 {[%clk
0:00:17.8]} 0-1

[Event "*** SCC Grand Prix: Titled Tuesday Blitz"]
[Site "Chess.com"]
[Date "2020.09.08"]
[Round "8"]
[White "sasko1234"]
[Black "Th3_Hound"]
[Result "1-0"]
[WhiteElo "2429"]
[BlackElo "2573"]
[TimeControl "180+1"]
[EndTime "11:36:25 PDT"]
[Termination "sasko1234 won by resignation"]

1. b3 {[%clk 0:02:44.2]} 1... d5 {[%clk 0:02:58.3]} 2. Bb2 {[%clk 0:02:43.7]}
2... Nf6 {[%clk 0:02:58.1]} 3. e3 {[%clk 0:02:43.8]} 3... Bf5 {[%clk 0:02:58.1]}
4. Nf3 {[%clk 0:02:41.5]} 4... h6 {[%clk 0:02:57.8]} 5. Be2 {[%clk 0:02:39.1]}
5... e6 {[%clk 0:02:57.9]} 6. O-O {[%clk 0:02:39.1]} 6... Be7 {[%clk 0:02:55.2]}
7. h3 {[%clk 0:02:39.2]} 7... O-O {[%clk 0:02:54.5]} 8. d3 {[%clk 0:02:39.5]}
8... Bh7 {[%clk 0:02:53.9]} 9. Nbd2 {[%clk 0:02:38.5]} 9... a5 {[%clk
0:02:52.9]} 10. a4 {[%clk 0:02:37.4]} 10... c6 {[%clk 0:02:51.7]} 11. Ne5 {[%clk
0:02:33.2]} 11... Nbd7 {[%clk 0:02:50.9]} 12. Ndf3 {[%clk 0:02:33.3]} 12... Qb8
{[%clk 0:02:47.7]} 13. Nxd7 {[%clk 0:02:32]} 13... Nxd7 {[%clk 0:02:48.6]} 14.
Qd2 {[%clk 0:02:30.5]} 14... Bb4 {[%clk 0:02:46.5]} 15. Bc3 {[%clk 0:02:30.1]}
15... Bxc3 {[%clk 0:02:43.8]} 16. Qxc3 {[%clk 0:02:29.5]} 16... e5 {[%clk
0:02:43.7]} 17. d4 {[%clk 0:02:26]} 17... e4 {[%clk 0:02:34]} 18. Nd2 {[%clk
0:02:25.2]} 18... f5 {[%clk 0:02:33.3]} 19. g3 {[%clk 0:02:16.5]} 19... g5
{[%clk 0:02:33.1]} 20. Rfe1 {[%clk 0:01:55.1]} 20... Nf6 {[%clk 0:02:30.9]} 21.
Nf1 {[%clk 0:01:52]} 21... f4 {[%clk 0:02:30.1]} 22. exf4 {[%clk 0:01:50.5]}
22... gxf4 {[%clk 0:02:29.9]} 23. gxf4 {[%clk 0:01:49.7]} 23... Kh8 {[%clk
0:02:21.9]} 24. Ng3 {[%clk 0:01:47.7]} 24... Qxf4 {[%clk 0:02:18.7]} 25. Qe3
{[%clk 0:01:46.5]} 25... Qh4 {[%clk 0:02:18.6]} 26. Kh2 {[%clk 0:01:43.8]} 26...
Rf7 {[%clk 0:02:06.3]} 27. Rg1 {[%clk 0:01:42.7]} 27... Raf8 {[%clk 0:02:05.3]}
28. Rg2 {[%clk 0:01:42.6]} 28... Rg7 {[%clk 0:01:49.2]} 29. Rag1 {[%clk
0:01:41.9]} 29... Rfg8 {[%clk 0:01:48.2]} 30. Nf1 {[%clk 0:01:27.6]} 30... Bf5
{[%clk 0:01:41.5]} 31. Rxg7 {[%clk 0:01:24.4]} 31... Rxg7 {[%clk 0:01:42.4]} 32.
Rxg7 {[%clk 0:01:23.9]} 32... Kxg7 {[%clk 0:01:43.3]} 33. Qg3+ {[%clk
0:01:23.5]} 33... Qxg3+ {[%clk 0:01:38.2]} 34. Kxg3 {[%clk 0:01:21.7]} 34... b6
{[%clk 0:01:29.1]} 35. Ne3 {[%clk 0:01:17.5]} 35... Be6 {[%clk 0:01:29.1]} 36.
h4 {[%clk 0:01:15.7]} 36... c5 {[%clk 0:01:28.4]} 37. c3 {[%clk 0:01:14.5]}
37... Ng8 {[%clk 0:01:08.7]} 38. Kf4 {[%clk 0:01:13.2]} 38... Kf6 {[%clk
0:01:06.6]} 39. Bg4 {[%clk 0:00:55.6]} 39... Ne7 {[%clk 0:01:02.5]} 40. Bxe6
{[%clk 0:00:54.5]} 40... Kxe6 {[%clk 0:01:03.4]} 41. h5 {[%clk 0:00:54.1]} 41...
Nc6 {[%clk 0:00:58.1]} 42. dxc5 {[%clk 0:00:48.3]} 42... bxc5 {[%clk 0:00:57.6]}
43. Ng4 {[%clk 0:00:48.9]} 43... Nd8 {[%clk 0:00:33.4]} 44. Nxh6 {[%clk
0:00:47.2]} 44... Kf6 {[%clk 0:00:26]} 45. Ng4+ {[%clk 0:00:46]} 45... Ke6
{[%clk 0:00:25.3]} 46. h6 {[%clk 0:00:43.8]} 46... Nf7 {[%clk 0:00:25.6]} 47. h7
{[%clk 0:00:42.8]} 47... Nh8 {[%clk 0:00:25.8]} 48. Ne5 {[%clk 0:00:39.8]} 48...
Kd6 {[%clk 0:00:24.6]} 49. Kf5 {[%clk 0:00:36.4]} 49... Ke7 {[%clk 0:00:21.5]}
1-0

[Event "*** SCC Grand Prix: Titled Tuesday Blitz"]
[Site "Chess.com"]
[Date "2020.09.08"]
[Round "8"]
[White "fighter2jz"]
[Black "jhonnyuribe"]
[Result "0-1"]
[WhiteElo "2708"]
[BlackElo "2542"]
[TimeControl "180+1"]
[EndTime "11:36:27 PDT"]
[Termination "jhonnyuribe won by checkmate"]

1. e4 {[%clk 0:03:00.9]} 1... c6 {[%clk 0:02:58.3]} 2. d4 {[%clk 0:02:59.4]}
2... d5 {[%clk 0:02:58.8]} 3. e5 {[%clk 0:02:58.8]} 3... c5 {[%clk 0:02:59.1]}
4. dxc5 {[%clk 0:02:57.6]} 4... Nc6 {[%clk 0:02:58.9]} 5. Nf3 {[%clk 0:02:57.5]}
5... Bg4 {[%clk 0:02:57]} 6. c3 {[%clk 0:02:50.3]} 6... e6 {[%clk 0:02:54.4]} 7.
Be3 {[%clk 0:02:48.7]} 7... Nge7 {[%clk 0:02:48.2]} 8. Bb5 {[%clk 0:02:44.8]}
8... Qc7 {[%clk 0:02:44.6]} 9. Bd4 {[%clk 0:02:41.8]} 9... Nf5 {[%clk 0:02:39]}
10. h3 {[%clk 0:02:37.3]} 10... Bxf3 {[%clk 0:02:38]} 11. Qxf3 {[%clk
0:02:36.6]} 11... a6 {[%clk 0:02:35]} 12. Ba4 {[%clk 0:02:19.4]} 12... Be7
{[%clk 0:02:33.2]} 13. O-O {[%clk 0:02:18.2]} 13... O-O {[%clk 0:02:32.1]} 14.
Bxc6 {[%clk 0:02:13.9]} 14... Qxc6 {[%clk 0:02:30.6]} 15. g4 {[%clk 0:02:04.7]}
15... Nxd4 {[%clk 0:02:23.9]} 16. cxd4 {[%clk 0:02:04.3]} 16... b6 {[%clk
0:02:24.6]} 17. cxb6 {[%clk 0:01:28.9]} 17... Qxb6 {[%clk 0:02:24.1]} 18. Qd3
{[%clk 0:01:28.1]} 18... Qxb2 {[%clk 0:02:21.4]} 19. Nd2 {[%clk 0:01:26.2]}
19... Rfc8 {[%clk 0:02:17.2]} 20. Rab1 {[%clk 0:01:08]} 20... Qxa2 {[%clk
0:02:09.5]} 21. Rb7 {[%clk 0:01:07]} 21... Bf8 {[%clk 0:01:58.9]} 22. Nf3 {[%clk
0:00:54.4]} 22... Qc4 {[%clk 0:01:52.2]} 23. Qb1 {[%clk 0:00:44.3]} 23... h6
{[%clk 0:01:46.4]} 24. g5 {[%clk 0:00:43.4]} 24... Qc2 {[%clk 0:01:40.4]} 25.
Qxc2 {[%clk 0:00:31.5]} 25... Rxc2 {[%clk 0:01:40.6]} 26. gxh6 {[%clk
0:00:31.8]} 26... gxh6 {[%clk 0:01:40.6]} 27. Kh2 {[%clk 0:00:32.1]} 27... a5
{[%clk 0:01:36.5]} 28. Ne1 {[%clk 0:00:27.4]} 28... Rc1 {[%clk 0:01:31]} 29.
Rg1+ {[%clk 0:00:22.1]} 29... Bg7 {[%clk 0:01:31.1]} 30. Rb3 {[%clk 0:00:23]}
30... a4 {[%clk 0:01:17.7]} 31. Rbg3 {[%clk 0:00:22.7]} 31... Kh8 {[%clk
0:01:17.3]} 32. Nd3 {[%clk 0:00:07.8]} 32... Rxg1 {[%clk 0:01:17.2]} 33. Rxg1
{[%clk 0:00:08.7]} 33... a3 {[%clk 0:01:15.8]} 34. Ra1 {[%clk 0:00:09.4]} 34...
Bf8 {[%clk 0:01:07.2]} 35. Ra2 {[%clk 0:00:09.5]} 35... Ra4 {[%clk 0:01:06.2]}
36. Nc5 {[%clk 0:00:06.8]} 36... Rxd4 {[%clk 0:01:03.6]} 37. Nd7 {[%clk
0:00:07.1]} 37... Bb4 {[%clk 0:01:00.6]} 38. Ra1 {[%clk 0:00:06.6]} 38... Rd2
{[%clk 0:00:55.9]} 39. Rg1 {[%clk 0:00:05]} 39... Bc3 {[%clk 0:00:49.9]} 40. Kh1
{[%clk 0:00:03.1]} 40... Rxf2 {[%clk 0:00:46.5]} 41. Nf6 {[%clk 0:00:03.3]}
41... Rxf6 {[%clk 0:00:45.5]} 42. exf6 {[%clk 0:00:04.2]} 42... a2 {[%clk
0:00:44.9]} 43. Ra1 {[%clk 0:00:04]} 43... Bxa1 {[%clk 0:00:44.5]} 44. Kg2
{[%clk 0:00:04.1]} 44... Bxf6 {[%clk 0:00:44.9]} 45. Kg3 {[%clk 0:00:04.5]}
45... a1=Q {[%clk 0:00:44.8]} 46. Kg4 {[%clk 0:00:05.4]} 46... Qd4+ {[%clk
0:00:44.8]} 47. Kh5 {[%clk 0:00:06.3]} 47... Qh4# {[%clk 0:00:44.8]} 0-1

[Event "*** SCC Grand Prix: Titled Tuesday Blitz"]
[Site "Chess.com"]
[Date "2020.09.08"]
[Round "8"]
[White "awesomevishesh"]
[Black "TudorAnton"]
[Result "1-0"]
[WhiteElo "2415"]
[BlackElo "2556"]
[TimeControl "180+1"]
[EndTime "11:36:28 PDT"]
[Termination "awesomevishesh won by resignation"]

1. e4 {[%clk 0:02:46.6]} 1... e5 {[%clk 0:02:59.1]} 2. Nf3 {[%clk 0:02:44.4]}
2... Nc6 {[%clk 0:02:56.3]} 3. Bb5 {[%clk 0:02:44.2]} 3... a6 {[%clk 0:02:55]}
4. Ba4 {[%clk 0:02:44.2]} 4... Nf6 {[%clk 0:02:54.3]} 5. O-O {[%clk 0:02:44.1]}
5... b5 {[%clk 0:02:54.5]} 6. Bb3 {[%clk 0:02:43.6]} 6... Bc5 {[%clk 0:02:55.2]}
7. c3 {[%clk 0:02:40]} 7... d6 {[%clk 0:02:50.9]} 8. a4 {[%clk 0:02:39.1]} 8...
Rb8 {[%clk 0:02:50]} 9. d4 {[%clk 0:02:37.8]} 9... Bb6 {[%clk 0:02:49.4]} 10. a5
{[%clk 0:02:34.2]} 10... Ba7 {[%clk 0:02:48.5]} 11. h3 {[%clk 0:02:16.4]} 11...
O-O {[%clk 0:02:47.3]} 12. Re1 {[%clk 0:02:14.4]} 12... Re8 {[%clk 0:02:46.5]}
13. Be3 {[%clk 0:02:06]} 13... exd4 {[%clk 0:02:45.5]} 14. cxd4 {[%clk
0:01:38.4]} 14... d5 {[%clk 0:02:43.8]} 15. e5 {[%clk 0:01:17.1]} 15... Ne4
{[%clk 0:02:44.1]} 16. Nc3 {[%clk 0:01:10.3]} 16... Be6 {[%clk 0:02:43.4]} 17.
Ne2 {[%clk 0:00:48.1]} 17... h6 {[%clk 0:02:35.5]} 18. Nf4 {[%clk 0:00:47.8]}
18... Qd7 {[%clk 0:02:28.6]} 19. Bc2 {[%clk 0:00:32.9]} 19... Ne7 {[%clk
0:02:27.9]} 20. Nd2 {[%clk 0:00:30.2]} 20... Nxd2 {[%clk 0:02:25.9]} 21. Qxd2
{[%clk 0:00:29.8]} 21... Bf5 {[%clk 0:02:24.2]} 22. Bb3 {[%clk 0:00:29.2]} 22...
c6 {[%clk 0:02:15]} 23. Nh5 {[%clk 0:00:26.6]} 23... Bg6 {[%clk 0:02:10.1]} 24.
Nf4 {[%clk 0:00:23.5]} 24... Nf5 {[%clk 0:02:09.4]} 25. Nxg6 {[%clk 0:00:22.7]}
25... fxg6 {[%clk 0:02:10.3]} 26. Rac1 {[%clk 0:00:20.5]} 26... Re6 {[%clk
0:02:09.3]} 27. Bc2 {[%clk 0:00:19]} 27... Rf8 {[%clk 0:02:07.4]} 28. Bb1 {[%clk
0:00:16.6]} 28... g5 {[%clk 0:02:04.2]} 29. Qd3 {[%clk 0:00:12.7]} 29... g6
{[%clk 0:01:58.9]} 30. Rcd1 {[%clk 0:00:08.8]} 30... Bb8 {[%clk 0:01:58]} 31.
Re2 {[%clk 0:00:08.6]} 31... Bc7 {[%clk 0:01:58.1]} 32. Bd2 {[%clk 0:00:08.6]}
32... Bd8 {[%clk 0:01:58.3]} 33. Bc3 {[%clk 0:00:08.2]} 33... Qf7 {[%clk
0:01:57.1]} 34. g3 {[%clk 0:00:08]} 34... Be7 {[%clk 0:01:56.2]} 35. Kg2 {[%clk
0:00:07.3]} 35... Kh7 {[%clk 0:01:47.9]} 36. Rf1 {[%clk 0:00:07.3]} 36... Ng7
{[%clk 0:01:45.9]} 37. f4 {[%clk 0:00:06.9]} 37... Qe8 {[%clk 0:01:37.9]} 38.
Ref2 {[%clk 0:00:06.2]} 38... gxf4 {[%clk 0:01:37]} 39. Rxf4 {[%clk 0:00:07.1]}
39... Rxf4 {[%clk 0:01:37.1]} 40. Rxf4 {[%clk 0:00:08]} 40... Bg5 {[%clk
0:01:36.7]} 41. Rf3 {[%clk 0:00:08.1]} 41... Nf5 {[%clk 0:01:33.3]} 42. Bc2
{[%clk 0:00:07]} 42... Be7 {[%clk 0:01:32.1]} 43. Qf1 {[%clk 0:00:07]} 43... b4
{[%clk 0:01:27.5]} 44. Rxf5 {[%clk 0:00:04.8]} 44... gxf5 {[%clk 0:01:27.5]} 45.
Bxf5+ {[%clk 0:00:04.8]} 45... Rg6 {[%clk 0:01:27.6]} 46. Bd2 {[%clk 0:00:04.6]}
46... Kg8 {[%clk 0:01:27.5]} 47. Bxg6 {[%clk 0:00:04.8]} 47... Qxg6 {[%clk
0:01:28.4]} 48. Qf4 {[%clk 0:00:04.9]} 48... Bg5 {[%clk 0:01:27.4]} 49. Qg4
{[%clk 0:00:03.6]} 49... Qc2 {[%clk 0:01:23.8]} 50. Qe6+ {[%clk 0:00:03.1]}
50... Kg7 {[%clk 0:01:23.3]} 51. Qd7+ {[%clk 0:00:02.9]} 51... Kf8 {[%clk
0:01:23.4]} 52. Qc8+ {[%clk 0:00:02.4]} 52... Kf7 {[%clk 0:01:22.9]} 53. Qd7+
{[%clk 0:00:02.5]} 53... Be7 {[%clk 0:01:22.8]} 54. Qf5+ {[%clk 0:00:02.5]}
54... Ke8 {[%clk 0:01:23.7]} 55. Qxc2 {[%clk 0:00:01.8]} 55... b3 {[%clk
0:01:23.6]} 56. Qd3 {[%clk 0:00:02.7]} 56... c5 {[%clk 0:01:24.4]} 57. Qf3
{[%clk 0:00:03.4]} 57... Kd8 {[%clk 0:01:25.3]} 58. Qd1 {[%clk 0:00:03.9]} 58...
c4 {[%clk 0:01:26.2]} 59. Bc3 {[%clk 0:00:04.2]} 59... Bg5 {[%clk 0:01:26.9]}
60. Qf1 {[%clk 0:00:05.1]} 60... Be3 {[%clk 0:01:27.4]} 61. Qf5 {[%clk
0:00:05.6]} 61... Bg5 {[%clk 0:01:28.3]} 62. Qe6 {[%clk 0:00:05.8]} 62... Kc7
{[%clk 0:01:29.2]} 63. Qxd5 {[%clk 0:00:06.5]} 1-0

[Event "*** SCC Grand Prix: Titled Tuesday Blitz"]
[Site "Chess.com"]
[Date "2020.09.08"]
[Round "8"]
[White "DrMamaliga"]
[Black "Mambastik-Fantastic"]
[Result "1-0"]
[WhiteElo "2212"]
[BlackElo "2295"]
[TimeControl "180+1"]
[EndTime "11:36:28 PDT"]
[Termination "DrMamaliga won by resignation"]

1. c4 {[%clk 0:03:00.9]} 1... Nf6 {[%clk 0:02:59.5]} 2. Nf3 {[%clk 0:03:00.7]}
2... d5 {[%clk 0:02:59.1]} 3. cxd5 {[%clk 0:02:55.8]} 3... Nxd5 {[%clk
0:02:58.8]} 4. e4 {[%clk 0:02:55.1]} 4... Nb6 {[%clk 0:02:56.3]} 5. d4 {[%clk
0:02:54.3]} 5... g6 {[%clk 0:02:56.6]} 6. Be3 {[%clk 0:02:53.5]} 6... Bg7 {[%clk
0:02:56.8]} 7. Be2 {[%clk 0:02:53]} 7... O-O {[%clk 0:02:57]} 8. O-O {[%clk
0:02:52.2]} 8... c5 {[%clk 0:02:53.9]} 9. Nc3 {[%clk 0:02:47.7]} 9... cxd4
{[%clk 0:02:46.4]} 10. Bxd4 {[%clk 0:02:48.6]} 10... Bxd4 {[%clk 0:02:40]} 11.
Qxd4 {[%clk 0:02:49.5]} 11... Nc6 {[%clk 0:02:38.4]} 12. Qxd8 {[%clk 0:02:43.2]}
12... Rxd8 {[%clk 0:02:37.7]} 13. Rad1 {[%clk 0:02:43.5]} 13... Bg4 {[%clk
0:02:32.9]} 14. Rfe1 {[%clk 0:02:23.7]} 14... e6 {[%clk 0:02:21.3]} 15. Nb5
{[%clk 0:02:16]} 15... Bxf3 {[%clk 0:02:09.9]} 16. Bxf3 {[%clk 0:02:16.9]} 16...
Ne5 {[%clk 0:02:02.3]} 17. Be2 {[%clk 0:02:15.9]} 17... Nbc4 {[%clk 0:01:55]}
18. b3 {[%clk 0:02:13]} 18... Nb2 {[%clk 0:01:45.1]} 19. Rb1 {[%clk 0:01:53.1]}
19... Rd2 {[%clk 0:01:36.3]} 20. Bf1 {[%clk 0:01:28.7]} 20... a6 {[%clk
0:01:35.6]} 21. Na3 {[%clk 0:01:22.9]} 21... b5 {[%clk 0:01:29.2]} 22. Rec1
{[%clk 0:01:20.2]} 22... Rad8 {[%clk 0:01:24.5]} 23. Nc2 {[%clk 0:01:19.5]}
23... Rd1 {[%clk 0:01:08.1]} 24. Rxd1 {[%clk 0:01:18.3]} 24... Nxd1 {[%clk
0:01:07]} 25. a4 {[%clk 0:01:07.6]} 25... Rd2 {[%clk 0:01:00.4]} 26. Nb4 {[%clk
0:01:01.8]} 26... Nxf2 {[%clk 0:00:50.6]} 27. Nxa6 {[%clk 0:00:56.9]} 27... bxa4
{[%clk 0:00:48.1]} 28. bxa4 {[%clk 0:00:57.8]} 28... Nxe4 {[%clk 0:00:42]} 29.
Nb4 {[%clk 0:00:51.7]} 29... Nc3 {[%clk 0:00:31.1]} 30. Ra1 {[%clk 0:00:51.1]}
30... Ng4 {[%clk 0:00:15.3]} 31. a5 {[%clk 0:00:49.2]} 31... Rd8 {[%clk
0:00:07.4]} 32. a6 {[%clk 0:00:48.4]} 32... Ra8 {[%clk 0:00:06.9]} 33. h3 {[%clk
0:00:42.9]} 33... Ne5 {[%clk 0:00:05.9]} 34. Ra3 {[%clk 0:00:39.9]} 34... Nd5
{[%clk 0:00:05]} 35. Nxd5 {[%clk 0:00:36.5]} 35... exd5 {[%clk 0:00:05.3]} 36.
Ra5 {[%clk 0:00:37.1]} 36... Nc6 {[%clk 0:00:04]} 37. Rxd5 {[%clk 0:00:35.5]}
37... Kf8 {[%clk 0:00:04.3]} 38. Rc5 {[%clk 0:00:33.9]} 38... Na7 {[%clk
0:00:03.3]} 39. Rc7 {[%clk 0:00:32]} 39... h5 {[%clk 0:00:03.3]} 40. Be2 {[%clk
0:00:31.1]} 40... Ke8 {[%clk 0:00:03.4]} 41. Bf3 {[%clk 0:00:30.6]} 1-0

[Event "*** SCC Grand Prix: Titled Tuesday Blitz"]
[Site "Chess.com"]
[Date "2020.09.08"]
[Round "8"]
[White "Tekushka"]
[Black "Goryachkina"]
[Result "0-1"]
[WhiteElo "2420"]
[BlackElo "2593"]
[TimeControl "180+1"]
[EndTime "11:36:32 PDT"]
[Termination "Goryachkina won on time"]

1. e4 {[%clk 0:03:00.9]} 1... e6 {[%clk 0:02:59.7]} 2. d4 {[%clk 0:03:00.4]}
2... d5 {[%clk 0:02:59.9]} 3. Nc3 {[%clk 0:03:00]} 3... Bb4 {[%clk 0:02:58.9]}
4. e5 {[%clk 0:02:59.4]} 4... c5 {[%clk 0:02:58]} 5. a3 {[%clk 0:02:57.9]} 5...
Ba5 {[%clk 0:02:57.6]} 6. b4 {[%clk 0:02:13.1]} 6... cxd4 {[%clk 0:02:56.9]} 7.
Nb5 {[%clk 0:01:56.4]} 7... Bc7 {[%clk 0:02:55.2]} 8. Nf3 {[%clk 0:01:50.6]}
8... Bd7 {[%clk 0:02:52]} 9. Nxc7+ {[%clk 0:01:45.9]} 9... Qxc7 {[%clk
0:02:51.9]} 10. Bd3 {[%clk 0:01:45.1]} 10... Nc6 {[%clk 0:02:39.7]} 11. O-O
{[%clk 0:01:35.9]} 11... Nge7 {[%clk 0:02:13]} 12. Re1 {[%clk 0:01:35.5]} 12...
Ng6 {[%clk 0:02:12.7]} 13. Qe2 {[%clk 0:01:26.7]} 13... a6 {[%clk 0:02:08.1]}
14. h4 {[%clk 0:01:22.4]} 14... Nge7 {[%clk 0:02:06.8]} 15. h5 {[%clk
0:01:20.2]} 15... h6 {[%clk 0:02:05.9]} 16. Bf4 {[%clk 0:01:09.1]} 16... Rc8
{[%clk 0:01:57.8]} 17. Nd2 {[%clk 0:01:07]} 17... Nf5 {[%clk 0:01:18.8]} 18. Qg4
{[%clk 0:00:45.2]} 18... Nce7 {[%clk 0:01:14.4]} 19. Qh3 {[%clk 0:00:39.9]}
19... g5 {[%clk 0:00:57.1]} 20. hxg6 {[%clk 0:00:36.2]} 20... Nxg6 {[%clk
0:00:50.8]} 21. Bh2 {[%clk 0:00:32.6]} 21... Nge7 {[%clk 0:00:49.2]} 22. g4
{[%clk 0:00:28.6]} 22... Ng7 {[%clk 0:00:44.2]} 23. Qf3 {[%clk 0:00:22.2]} 23...
h5 {[%clk 0:00:38.8]} 24. Qf6 {[%clk 0:00:20.3]} 24... Kf8 {[%clk 0:00:37.9]}
25. gxh5 {[%clk 0:00:12.9]} 25... Rxh5 {[%clk 0:00:27.7]} 26. Bg3 {[%clk
0:00:12.4]} 26... Ngf5 {[%clk 0:00:23.6]} 27. Kg2 {[%clk 0:00:11.3]} 27... Ng8
{[%clk 0:00:21.1]} 28. Bxf5 {[%clk 0:00:05.3]} 28... Nxf6 {[%clk 0:00:18.7]} 29.
exf6 {[%clk 0:00:05.6]} 29... Qc6 {[%clk 0:00:15.9]} 30. Bd3 {[%clk 0:00:05.1]}
30... e5 {[%clk 0:00:13.9]} 31. Bxe5 {[%clk 0:00:03.9]} 31... Bh3+ {[%clk
0:00:12.5]} 32. Kg3 {[%clk 0:00:03.4]} 32... Qe6 {[%clk 0:00:10.1]} 33. f3
{[%clk 0:00:02.3]} 33... Rxe5 {[%clk 0:00:09.9]} 0-1

[Event "*** SCC Grand Prix: Titled Tuesday Blitz"]
[Site "Chess.com"]
[Date "2020.09.08"]
[Round "8"]
[White "Chessdreamer2020"]
[Black "Brave_spirit12"]
[Result "1-0"]
[WhiteElo "2394"]
[BlackElo "2491"]
[TimeControl "180+1"]
[EndTime "11:36:32 PDT"]
[Termination "Chessdreamer2020 won by resignation"]

1. e4 {[%clk 0:03:00.9]} 1... e6 {[%clk 0:02:57.5]} 2. d4 {[%clk 0:03:00.1]}
2... d5 {[%clk 0:02:57.4]} 3. Nd2 {[%clk 0:03:00.7]} 3... c5 {[%clk 0:02:57.1]}
4. exd5 {[%clk 0:03:00.5]} 4... exd5 {[%clk 0:02:56.9]} 5. Ngf3 {[%clk
0:03:00.4]} 5... Nc6 {[%clk 0:02:57.3]} 6. Bb5 {[%clk 0:02:59.6]} 6... Bd6
{[%clk 0:02:56.8]} 7. dxc5 {[%clk 0:02:58.9]} 7... Bxc5 {[%clk 0:02:57.7]} 8.
O-O {[%clk 0:02:58.9]} 8... Ne7 {[%clk 0:02:57.5]} 9. Nb3 {[%clk 0:02:59.4]}
9... Bd6 {[%clk 0:02:57.8]} 10. Re1 {[%clk 0:02:57.2]} 10... O-O {[%clk
0:02:57.8]} 11. Bd3 {[%clk 0:02:57.7]} 11... h6 {[%clk 0:02:57.1]} 12. c3 {[%clk
0:02:56.2]} 12... Bg4 {[%clk 0:02:57.3]} 13. h3 {[%clk 0:02:54.8]} 13... Bh5
{[%clk 0:02:55.6]} 14. Bc2 {[%clk 0:02:53.7]} 14... Re8 {[%clk 0:02:53.3]} 15.
Qd3 {[%clk 0:02:53.4]} 15... Bg6 {[%clk 0:02:52.4]} 16. Qd1 {[%clk 0:02:53.2]}
16... Bxc2 {[%clk 0:02:48.8]} 17. Qxc2 {[%clk 0:02:52.8]} 17... Rc8 {[%clk
0:02:49.4]} 18. Qd3 {[%clk 0:02:50.9]} 18... Qd7 {[%clk 0:02:46.8]} 19. Be3
{[%clk 0:02:49.7]} 19... Ng6 {[%clk 0:02:46.4]} 20. Qd2 {[%clk 0:02:44.1]} 20...
Nce5 {[%clk 0:02:44.4]} 21. Nxe5 {[%clk 0:02:43.8]} 21... Nxe5 {[%clk
0:02:37.3]} 22. Qxd5 {[%clk 0:02:38.3]} 22... Nc4 {[%clk 0:02:37.3]} 23. Rad1
{[%clk 0:02:29.6]} 23... Red8 {[%clk 0:02:35.2]} 24. Bf4 {[%clk 0:02:14.7]}
24... Nxb2 {[%clk 0:02:29.8]} 25. Rd2 {[%clk 0:01:34]} 25... Bxf4 {[%clk
0:02:12.6]} 26. Qxd7 {[%clk 0:01:32.3]} 26... Bxd2 {[%clk 0:02:11.3]} 27. Re8+
{[%clk 0:00:53.3]} 27... Rxe8 {[%clk 0:02:10.1]} 28. Qxd2 {[%clk 0:00:53.7]}
28... Nc4 {[%clk 0:02:11]} 29. Qd4 {[%clk 0:00:51]} 29... a6 {[%clk 0:02:06.7]}
30. Nc5 {[%clk 0:00:48.7]} 30... Nb6 {[%clk 0:01:28.7]} 31. Nxb7 {[%clk
0:00:46.3]} 31... Re6 {[%clk 0:01:20.3]} 32. a4 {[%clk 0:00:34.2]} 32... Rc4
{[%clk 0:01:13.6]} 33. Qd8+ {[%clk 0:00:31.2]} 33... Kh7 {[%clk 0:01:13.6]} 34.
a5 {[%clk 0:00:28.2]} 34... Na4 {[%clk 0:01:09.2]} 35. Nd6 {[%clk 0:00:26.8]}
35... Rf4 {[%clk 0:01:01.7]} 36. Qd7 {[%clk 0:00:19.5]} 36... Nxc3 {[%clk
0:00:58.8]} 37. Nxf7 {[%clk 0:00:20]} 37... Re1+ {[%clk 0:00:51.4]} 38. Kh2
{[%clk 0:00:20.1]} 38... Rxf2 {[%clk 0:00:51.8]} 39. Qd3+ {[%clk 0:00:19]} 39...
Ne4 {[%clk 0:00:51.9]} 40. Nd6 {[%clk 0:00:17.2]} 40... Rfe2 {[%clk 0:00:44.7]}
41. Nxe4 {[%clk 0:00:16.2]} 41... Rxe4 {[%clk 0:00:45.6]} 42. Qxa6 {[%clk
0:00:16.4]} 42... Ra4 {[%clk 0:00:38.6]} 43. Qd3+ {[%clk 0:00:15.7]} 43... Kg8
{[%clk 0:00:38.9]} 44. Qb3+ {[%clk 0:00:13.9]} 44... Rc4 {[%clk 0:00:34.4]} 45.
Qxc4+ {[%clk 0:00:13.5]} 45... Re6 {[%clk 0:00:32.9]} 46. Qxe6+ {[%clk 0:00:12]}
1-0